[Event "45th FIDE Womens Olympiad 2024"]
[Site "Budapest"]
[Date "2024.09.16"]
[Round "6.13"]
[White "Kashlinskaya, Alina"]
[Black "Zhu, Jiner"]
[Result "1/2-1/2"]
[ECO "B22"]
[WhiteElo "2490"]
[BlackElo "2487"]
[Annotator "TA"]
[PlyCount "81"]
[EventDate "2024.09.05"]
[EventType "team-tourn"]
[EventCountry "HUN"]
[SourceTitle "playchess.com"]
[Source "ChessBase"]
[SourceQuality "1"]
[WhiteTeam "Poland"]
[BlackTeam "China"]
[WhiteTeamCountry "POL"]
[BlackTeamCountry "CHN"]
[TimeControl "40/5400+30:1800+30"]

{[%evp 12,81,0,6,10,5,0,13,19,2,6,9,8,16,45,37,99,76,70,78,77,67,72,60,67,64,61,51,89,81,91,72,93,86,72,35,40,29,23,19,15,5,7,0,14,0,0,0,23,15,42,24,25,42,42,0,0,0,0,0,0,0,0,0,0,0,0,0,0,0,0,0]} 1. e4 {[%emt 0:00:03]} c5 {[%emt 0:00:20]} 2. c3 {[%emt 0:00:07]} d5 {[%emt 0:01:23]} 3. exd5 {[%emt 0:00:06]} Qxd5 {[%emt 0:00:03]} 4. d4 {[%emt 0:00:11]} Nf6 {[%emt 0:02:50]} 5. Nf3 {[%emt 0:00:08]} Nc6 {[%emt 0:00:15]} 6. Be3 {[%emt 0:01:02]} e6 {[%emt 0:02:50]} 7. Na3 {[%emt 0:01:02] Threatening Bc4.} cxd4 {[%emt 0:00:20] [#]} 8. Nb5 $1 {[%emt 0:00:22]} Qd7 {[%emt 0:00:07] Repels Nc7+} (8... Qd8 9. Nbxd4) 9. Nbxd4 {[%emt 0:01:30]} Be7 {[%emt 0:05:51]} 10. Nxc6 {[%emt 0:20:51]} Qxc6 {[%emt 0:18:10]} 11. Ne5 {[%emt 0:14:42]} Qd5 {[%emt 0:00:12]} 12. Qa4+ {[%emt 0:00:35]} Kf8 {[%emt 0:08:46]} (12... Nd7 {with more complications.} 13. f4 Bh4+ 14. Bf2 Bxf2+ 15. Kxf2 Qc5+) 13. f4 {[%emt 0:12:42][%cal Oa1d1]} Qe4 {[%emt 0:06:05]} ({Better is} 13... a6 $14) 14. Qxe4 $16 {[%emt 0:00:14]} Nxe4 {[%emt 0:00:05][%cal Bf6e4,Be4d6,Bd6f5][%mdl 32]} 15. O-O-O {[%emt 0:00:50]} f6 {[%emt 0:05:10]} 16. Nf3 {[%emt 0:01:34]} Kf7 {[%emt 0:00:59]} 17. Bc4 {[%emt 0:11:21]} Nd6 {[%emt 0:04:29]} 18. Bb3 {[%emt 0:00:12] White has more active pieces.} a5 {[%emt 0:00:24]} 19. a4 {[%emt 0:02:49]} Nf5 {[%emt 0:02:49] Against Nd4} 20. Bf2 {[%emt 0:03:22] And now g4 would win.} h5 {[%emt 0:00:14]} 21. Rhe1 {[%emt 0:01:04]} Ra6 {[%emt 0:01:01]} 22. Re2 {[%emt 0:03:29]} Rc6 {[%emt 0:06:44]} 23. Nd4 {[%emt 0:04:41]} Nxd4 {[%emt 0:00:09]} 24. Bxd4 {[%emt 0:00:05]} g6 {[%emt 0:01:53]} 25. Rde1 {[%emt 0:01:41]} Rd8 {[%emt 0:01:07]} 26. Kb1 {[%emt 0:00:52]} b6 {[%emt 0:00:27]} 27. g3 {[%emt 0:01:59][%cal Bg2g3,Bg3g4][%mdl 32]} Bc5 {[%emt 0:01:39]} 28. Bxc5 {[%emt 0:00:59]} bxc5 {[%emt 0:00:06]} 29. Bc4 {[%emt 0:00:38]} Rb6 {[%emt 0:00:16]} 30. h3 {[%emt 0:08:08]} Ke7 {[%emt 0:12:08][%cal Oe6e5]} 31. Kc1 {[%emt 0:00:44]} Rdd6 {[%emt 0:01:31]} 32. g4 {[%emt 0:00:21]} h4 {[%emt 0:02:15]} 33. Bb5 {[%emt 0:03:47]} Bd7 {[%emt 0:02:12] The position is equal.} 34. Bxd7 {[%emt 0:00:02]} Kxd7 $11 {[%emt 0:00:44][%mdl 4096] Endgame. KRR-KRR} 35. Re3 {[%emt 0:00:12] Wards off Rd3} Rd5 {[%emt 0:00:20]} 36. R1e2 {[%emt 0:01:25]} Rbd6 {[%emt 0:01:58]} 37. Kc2 {[%emt 0:00:01]} Rb6 {[%emt 0:00:14]} 38. Re4 {[%emt 0:00:38]} Rbd6 {[%emt 0:00:20]} 39. R4e3 {[%emt 0:00:02]} Rb6 {[%emt 0:00:13]} 40. Re4 {[%emt 0:00:56]} Rbd6 {[%emt 0:00:47]} 41. R4e3 {[%emt 0:31:08] Weighted Error Value: White=0.06 (flawless) /Black=0.07 (flawless) .  Mistake:       	---       	Black=1      Inaccurate:     	White=2     	Black=3      OK:         	White=10    	Black=18     Best:        	White=1     	---        Strong:       	White=1     	---} 1/2-1/2

[Event "45th FIDE Womens Olympiad 2024"]
[Site "Budapest"]
[Date "2024.09.16"]
[Round "6.14"]
[White "Song, Yuxin"]
[Black "Socko, Monika"]
[Result "1/2-1/2"]
[ECO "C42"]
[WhiteElo "2373"]
[BlackElo "2422"]
[Annotator "TA"]
[PlyCount "73"]
[EventDate "2024.09.05"]
[EventType "team-tourn"]
[EventCountry "HUN"]
[SourceTitle "playchess.com"]
[Source "ChessBase"]
[SourceQuality "1"]
[WhiteTeam "China"]
[BlackTeam "Poland"]
[WhiteTeamCountry "CHN"]
[BlackTeamCountry "POL"]
[TimeControl "40/5400+30:1800+30"]

{[%evp 15,73,46,39,16,25,17,28,35,31,27,28,25,28,20,35,32,27,44,47,18,17,12,18,15,20,17,44,13,41,37,32,23,31,24,77,0,0,0,0,0,0,0,0,0,0,0,0,0,0,0,0,0,0,0,0,0,0,0,0,0]} 1. e4 {[%emt 0:00:03]} e5 {[%emt 0:00:07]} 2. Nf3 {[%emt 0:00:05]} Nf6 {[%emt 0:00:04][%cal Bg8f6,Bf6e4,Be4d6,Bd6f5][%mdl 32]} 3. Nxe5 {[%emt 0:03:13]} d6 {[%emt 0:00:10]} 4. Nf3 {[%emt 0:00:07]} Nxe4 {[%emt 0:00:12]} 5. d4 {[%emt 0:01:45]} d5 {[%emt 0:00:12]} 6. Bd3 {[%emt 0:00:08]} Bf5 {[%emt 0:00:16]} 7. O-O {[%emt 0:00:10]} Be7 {[%emt 0:00:18]} 8. Re1 {[%emt 0:00:33]} O-O {[%emt 0:00:23]} 9. Nbd2 {[%emt 0:03:07]} Nd6 {[%emt 0:00:27]} 10. Nf1 {[%emt 0:02:02]} Nd7 {[%emt 0:00:41]} 11. Bxf5 {[%emt 0:04:29] White has an edge.} Nxf5 {[%emt 0:00:04]} 12. Qd3 {[%emt 0:00:13]} Nd6 {[%emt 0:00:43]} 13. Bf4 {[%emt 0:01:48]} Re8 {[%emt 0:09:00]} 14. Re2 {[%emt 0:05:49]} Nf6 {[%emt 0:00:57]} 15. Rae1 {[%emt 0:01:57]} a5 {[%emt 0:01:08]} 16. a4 {[%emt 0:07:00]} Bf8 {[%emt 0:12:34]} 17. Rxe8 {[%emt 0:05:38]} Ndxe8 {[%emt 0:02:46]} 18. Ng3 {[%emt 0:01:03]} Nd6 {[%emt 0:06:26]} 19. Ne5 {[%emt 0:04:01]} Qc8 {[%emt 0:08:10]} 20. h3 {[%emt 0:10:47]} Ra6 {[%emt 0:03:53]} 21. Re2 {[%emt 0:05:49]} h6 {[%emt 0:08:33]} 22. c3 {[%emt 0:03:36]} Nde4 {[%emt 0:04:22]} 23. Nxe4 {[%emt 0:01:01]} Nxe4 {[%emt 0:05:58]} 24. Qb5 {[%emt 0:01:11]} Rf6 {[%emt 0:12:06]} (24... c6 $11 25. Qd3 Rb6) 25. Qxd5 {[%emt 0:14:05] White is more active.} ({White should play} 25. Nd3 $16) 25... Rxf4 $11 {[%emt 0:02:15][%cal Bf6f4,Bf4e4,Be4e1][%mdl 32] The position is equal.} 26. Rxe4 {[%emt 0:00:04]} c6 {[%emt 0:00:17]} 27. Qb3 {[%emt 0:00:05]} Rxe4 {[%emt 0:02:37]} 28. Qxf7+ {[%emt 0:00:06]} Kh8 {[%emt 0:01:04]} 29. Ng6+ {[%emt 0:00:05]} Kh7 {[%emt 0:00:03]} 30. Nxf8+ {[%emt 0:00:08][%mdl 4096] Endgame. KQR-KQN} (30. Qxf8 $2 {loses.} Qxf8 31. Nxf8+ Kg8 $19) 30... Kh8 {[%emt 0:00:02]} 31. Ng6+ {[%emt 0:00:35]} Kh7 {[%emt 0:00:03]} 32. Ne5 {[%emt 0:04:40] [#] Threatens to win with Qg6+.} ({Don't do} 32. Nf8+ Kh8 $14) 32... Re1+ {[%emt 0:00:12]} 33. Kh2 {[%emt 0:00:02]} c5 {[%emt 0:01:24]} 34. Qg6+ {[%emt 0:00:57]} Kg8 {[%emt 0:00:12]} 35. Qf7+ {[%emt 0:03:59]} Kh7 {[%emt 0:00:25]} 36. Qg6+ {[%emt 0:02:22]} Kg8 {[%emt 0:01:06]} 37. Qf7+ {[%emt 0:06:20] Weighted Error Value: White=0.08 (flawless) /Black=0.07 (flawless) .  Mistake:       	White=1     	Black=1      Inaccurate:     	White=2     	Black=2      OK:         	White=8     	Black=7      Best:        	White=3     	Black=8} 1/2-1/2

[Event "45th FIDE Womens Olympiad 2024"]
[Site "Budapest"]
[Date "2024.09.16"]
[Round "6.14"]
[White "Beukes, Jamie-Nicole"]
[Black "Wahid, Chelsea"]
[Result "1/2-1/2"]
[ECO "B12"]
[WhiteElo "1735"]
[BlackElo "1482"]
[PlyCount "97"]
[EventDate "2024.09.05"]
[EventType "team-tourn"]
[EventCountry "HUN"]
[WhiteTeam "Namibia"]
[BlackTeam "Saint Lucia"]
[WhiteTeamCountry "NAM"]
[TimeControl "40/5400+30:1800+30"]

1. e4 c6 2. d4 d5 3. e5 Bf5 4. Bd3 Bxd3 5. Qxd3 e6 6. Nf3 Nd7 7. Nbd2 c5 8. c3 Ne7 9. Qe2 Nf5 10. b3 Be7 11. Bb2 O-O 12. O-O Qb6 13. Rac1 c4 14. Rc2 Qa6 15. bxc4 Nb6 16. Rb1 Nxc4 17. Bc1 Nxd2 18. Qxd2 Rac8 19. Rcb2 Rc7 20. Rb3 Rfc8 21. Qb2 b6 22. Bd2 Rc4 23. Be1 Ra4 24. Ra1 Qd3 25. Qd2 Qxd2 26. Bxd2 Nh4 27. Ne1 f6 28. Nd3 Ng6 29. f4 f5 30. Nb2 Ra3 31. Nd3 Rxb3 32. axb3 a5 33. Ra4 Kf7 34. g3 h5 35. b4 axb4 36. Nxb4 Bxb4 37. Rxb4 Rb8 38. Rb5 Ne7 39. Bc1 Nc8 40. Rb3 Ra8 41. Ra3 Rxa3 42. Bxa3 b5 43. Kf2 Nb6 44. Ke2 Nc4 45. Bc1 Ke7 46. Kd3 Kd7 47. Kc2 Na5 48. Kb2 Kc6 49. Ka3 1/2-1/2

[Event "45th FIDE Womens Olympiad 2024"]
[Site "Budapest"]
[Date "2024.09.16"]
[Round "6.15"]
[White "Kiolbasa, Oliwia"]
[Black "Guo, Qi"]
[Result "1-0"]
[ECO "D35"]
[WhiteElo "2348"]
[BlackElo "2367"]
[Annotator "TA"]
[PlyCount "113"]
[EventDate "2024.09.05"]
[EventType "team-tourn"]
[EventCountry "HUN"]
[SourceTitle "playchess.com"]
[Source "ChessBase"]
[SourceQuality "1"]
[WhiteTeam "Poland"]
[BlackTeam "China"]
[WhiteTeamCountry "POL"]
[BlackTeamCountry "CHN"]
[TimeControl "40/5400+30:1800+30"]

{[%evp 12,113,20,20,22,29,32,17,20,28,23,15,16,15,28,16,24,8,20,25,23,25,25,14,18,15,33,21,45,35,60,77,98,0,0,0,85,42,50,31,52,28,38,23,46,30,43,37,48,4,65,56,83,75,71,68,93,81,108,33,83,0,102,0,70,78,96,83,86,0,104,0,74,89,102,101,115,53,52,38,235,242,327,332,811,811,810,810,774,597,560,571,638,222,415,404,761,743,29950,29958,29968,29969,5297,4910]} 1. d4 {[%emt 0:00:28]} d5 {[%emt 0:00:14]} 2. c4 {[%emt 0:00:11]} e6 {[%emt 0:00:19]} 3. Nc3 {[%emt 0:00:12]} Nf6 {[%emt 0:00:48]} 4. cxd5 {[%emt 0:00:20]} exd5 {[%emt 0:00:13]} 5. Bg5 {[%emt 0:00:33]} Be7 {[%emt 0:01:47]} 6. e3 {[%emt 0:00:53]} h6 {[%emt 0:00:10]} 7. Bh4 {[%emt 0:00:22]} Bg4 {[%emt 0:00:05]} 8. f3 {[%emt 0:05:42]} Be6 {[%emt 0:00:08]} 9. Bd3 {[%emt 0:05:37]} c5 {[%emt 0:00:37] The position is equal.} 10. Nge2 {[%emt 0:01:40]} Nc6 {[%emt 0:00:07]} 11. O-O {[%emt 0:09:03]} O-O {[%emt 0:00:46]} 12. Bc2 {[%emt 0:12:34]} Rc8 {[%emt 0:05:45]} 13. Bf2 {[%emt 0:02:38]} cxd4 {[%emt 0:02:35]} 14. Nxd4 {[%emt 0:02:33]} Nxd4 {[%emt 0:00:07]} 15. Qxd4 {[%emt 0:02:52]} Qa5 {[%emt 0:09:44]} 16. Bb3 {[%emt 0:05:15]} Rfd8 {[%emt 0:08:00]} 17. Rfd1 {[%emt 0:03:15]} Bc5 {[%emt 0:02:35]} 18. Qd3 {[%emt 0:05:11]} a6 {[%emt 0:01:56]} 19. Ne2 {[%emt 0:01:42]} Nd7 {[%emt 0:10:41]} 20. Nf4 {[%emt 0:03:04]} Ne5 {[%emt 0:00:13]} 21. Qe2 {[%emt 0:01:15]} Ba7 {[%emt 0:01:29] [#]} 22. Rac1 {[%emt 0:08:33]} ({White should play} 22. e4 $1 $16 Bxf2+ 23. Qxf2) 22... Rxc1 $11 {[%emt 0:01:16]} 23. Rxc1 {[%emt 0:00:08]} Ng6 {[%emt 0:01:03]} (23... b5 $11) 24. Nxe6 {[%emt 0:05:55]} fxe6 {[%emt 0:00:10]} 25. Qc2 {[%emt 0:00:02]} Nf8 {[%emt 0:02:13]} 26. Qd3 {[%emt 0:01:12]} Qb6 {[%emt 0:02:04]} 27. a3 {[%emt 0:04:18]} Qd6 {[%emt 0:01:01]} 28. Ba2 {[%emt 0:02:51]} Qd7 {[%emt 0:03:45]} 29. Rd1 {[%emt 0:02:36]} Qc7 {[%emt 0:04:18]} 30. f4 {[%emt 0:05:23]} Kh8 {[%emt 0:00:57]} (30... Nh7 $11) 31. Bb1 $14 {[%emt 0:02:55]} e5 {[%emt 0:08:33]} 32. fxe5 {[%emt 0:02:39]} Qxe5 {[%emt 0:00:06]} 33. Kh1 {[%emt 0:00:05]} Re8 {[%emt 0:07:25]} 34. Rf1 {[%emt 0:00:09]} (34. Qxd5 Qxd5 35. Rxd5 Bxe3 36. Bxe3 Rxe3 $14) 34... Qe4 {[%emt 0:00:43]} 35. Qe2 {[%emt 0:00:34]} (35. Qxe4 $16 dxe4 36. Bg1) 35... Qe6 {[%emt 0:04:55]} (35... Qc4 $14 36. Bd3 Qc6) 36. Qd3 {[%emt 0:02:38]} Qe4 $1 {[%emt 0:00:18]} 37. Qe2 {[%emt 0:00:36]} (37. Qxe4 {simplifies} dxe4 38. Bg1 Nh7 39. Rf7) 37... Qe6 {[%emt 0:00:01][%cal Of8d7]} 38. Qc2 {[%emt 0:01:35]} Qe4 {[%emt 0:02:20]} (38... Bxe3 $2 39. Bxe3 Kg8 (39... Qxe3 40. Rxf8+ Rxf8 41. Qh7#) 40. Bg1 $18) 39. Qd1 {[%emt 0:00:03]} (39. Qxe4 {simplifies} dxe4 40. Bg1 b5 41. Rf7) 39... Qe6 {[%emt 0:02:56][%cal Of8d7]} 40. Qc2 {[%emt 0:01:15]} Qe4 $1 {[%emt 0:01:19]} (40... Bxe3 $2 {perishes.} 41. Bxe3 Kg8 (41... Qxe3 42. Rxf8+ Rxf8 43. Qh7#) 42. Bd2 $18) 41. Qd1 {[%emt 0:09:17]} (41. Qxe4 {simplifies} dxe4 42. Bg1 Nh7 43. Rf7) 41... Qe6 {[%emt 0:01:09]} 42. Ba2 {[%emt 0:09:02]} Bxe3 {[%emt 0:11:10]} 43. Bxd5 {[%emt 0:01:19]} Qe7 {[%emt 0:01:01]} 44. Be1 {[%emt 0:03:15]} ({White should try} 44. Bxe3 $16 Qxe3 45. Bxb7) 44... Ne6 {[%emt 0:13:03]} 45. Ba2 {[%emt 0:05:13] [#] Bc3 would now be deadly.} (45. Bb4 {simplifies} Qd7 46. Be4 Qxd1 47. Rxd1 Rd8 48. Rxd8+ Nxd8 49. Bc3) 45... Bc5 $2 {[%emt 0:09:22] A mistake that costs the game.} ({Better is} 45... Ng5 $14) 46. Bc3 $18 {[%emt 0:00:47]} Ng5 {[%emt 0:00:07]} 47. Qh5 {[%emt 0:01:41]} Kh7 {[%emt 0:01:24]} (47... Rf8 48. Rxf8+ (48. Qxh6+ Nh7 $18) 48... Qxf8 49. Qxh6+ Nh7) 48. Bb1+ {[%emt 0:00:41]} Kg8 {[%emt 0:00:02]} 49. Qg6 {[%emt 0:00:58]} Rf8 {[%emt 0:02:16]} 50. Ba2+ {[%emt 0:00:50] This pair of bishops is nice.} Kh8 {[%emt 0:00:28]} 51. Rd1 {[%emt 0:02:13]} Be3 {[%emt 0:02:55]} 52. Qxh6+ $40 {[%emt 0:00:55][%mdl 128] White wants a kill.} Nh7 {[%emt 0:00:02]} 53. Qg6 {[%emt 0:00:13] Strongly threatening Bb1. Black is weak on the light squares} Qd7 {[%emt 0:02:49]} (53... Nf6 $142 54. Re1 Qe4) 54. Re1 {[%emt 0:00:44][%cal Oa2b1] White threatens Bb1! and mate.} (54. Rxd7 $2 Rf1#) ({Avoid the trap} 54. Qxh7+ $2 Kxh7 55. Bb1+ Kh8 $19) 54... Rf2 {[%emt 0:04:12]} 55. Bb1 {[%emt 0:00:46][%csl Gb1][%cal Rg6h7]} (55. Rxe3 $2 Rf1#) 55... Nf6 {[%emt 0:00:12]} 56. Bxf6 {[%emt 0:00:59]} (56. Rxe3 $2 Rf1#) 56... gxf6 {[%emt 0:00:01]} 57. h3 {[%emt 0:00:26] Weighted Error Value: White=0.38/Black=0.36.  Loses game:     	---       	Black=1      Mistake:       	White=3     	Black=5      Inaccurate:     	White=4     	Black=4      OK:         	White=12    	Black=11     Best:        	White=5     	Black=1      Strong:       	---       	Black=2} (57. Rxe3 $2 Rf1#) 1-0

[Event "45th FIDE Womens Olympiad 2024"]
[Site "Budapest"]
[Date "2024.09.16"]
[Round "6.16"]
[White "Ni, Shiqun"]
[Black "Sliwicka, Alicja"]
[Result "1/2-1/2"]
[ECO "B31"]
[WhiteElo "2348"]
[BlackElo "2373"]
[Annotator "RC"]
[PlyCount "185"]
[EventDate "2024.09.05"]
[EventType "team-tourn"]
[EventCountry "HUN"]
[SourceTitle "playchess.com"]
[Source "ChessBase"]
[SourceQuality "1"]
[WhiteTeam "China"]
[BlackTeam "Poland"]
[WhiteTeamCountry "CHN"]
[BlackTeamCountry "POL"]
[TimeControl "40/5400+30:1800+30"]

1. e4 {[%emt 0:00:14]} c5 {[%emt 0:00:06]} 2. Nf3 {[%emt 0:00:05]} Nc6 {[%emt 0:00:04]} 3. Bb5 {[%emt 0:00:05]} g6 {[%emt 0:00:06]} 4. Bxc6 {[%emt 0:00:05]} bxc6 {[%emt 0:00:23]} 5. O-O {[%emt 0:00:30]} Bg7 {[%emt 0:00:08]} 6. Re1 {[%emt 0:00:18]} Qc7 {[%emt 0:00:10]} 7. d3 {[%emt 0:00:12]} d6 {[%emt 0:04:15]} 8. e5 {[%emt 0:00:22]} dxe5 {[%emt 0:03:56]} 9. Na3 {[%emt 0:01:48]} Be6 {[%emt 0:07:24]} 10. Ng5 {[%emt 0:06:05]} Bf5 {[%emt 0:05:45]} 11. Nc4 {[%emt 0:08:38]} Nh6 {[%emt 0:07:10]} 12. Be3 {[%emt 0:02:28]} Rd8 {[%emt 0:06:24]} 13. Bxc5 {[%emt 0:01:49]} f6 {[%emt 0:00:41]} 14. Ne4 {[%emt 0:03:54]} Nf7 {[%emt 0:02:27]} 15. Qe2 {[%emt 0:20:45]} O-O {[%emt 0:07:16]} 16. Ng3 {[%emt 0:04:32]} Be6 {[%emt 0:02:14]} 17. d4 {[%emt 0:04:19]} Nd6 {[%emt 0:10:57]} 18. Nd2 {[%emt 0:02:10]} Nb7 {[%emt 0:01:11]} 19. Nb3 {[%emt 0:07:24]} a5 {[%emt 0:04:10]} 20. Qa6 {[%emt 0:04:11]} Ra8 {[%emt 0:02:15]} 21. Qb6 {[%emt 0:01:43]} Qxb6 {[%emt 0:01:06]} 22. Bxb6 {[%emt 0:00:04]} Bxb3 {[%emt 0:02:23]} 23. axb3 {[%emt 0:00:25]} Ra6 {[%emt 0:00:15]} 24. Bc5 {[%emt 0:00:16]} Nxc5 {[%emt 0:01:18]} 25. dxc5 {[%emt 0:00:02]} Rb8 {[%emt 0:01:00]} 26. Ra4 {[%emt 0:10:30]} Rb5 {[%emt 0:00:10]} 27. Rc4 {[%emt 0:01:08]} f5 {[%emt 0:00:30]} 28. f3 {[%emt 0:00:08]} e6 {[%emt 0:05:17]} 29. Kf1 {[%emt 0:04:22]} Ra7 {[%emt 0:07:08]} 30. Rd1 {[%emt 0:09:33]} Bf8 {[%emt 0:00:05]} 31. Rd8 {[%emt 0:02:13]} Rc7 {[%emt 0:02:05]} 32. Ne2 {[%emt 0:00:08]} Kf7 {[%emt 0:02:39]} 33. Nc3 {[%emt 0:00:00]} Rbb7 {[%emt 0:03:07]} 34. Ke2 {[%emt 0:03:59]} Be7 {[%emt 0:02:30]} 35. Ra8 {[%emt 0:00:13]} Ra7 {[%emt 0:00:21]} 36. Rxa7 {[%emt 0:01:25]} Rxa7 {[%emt 0:00:00]} 37. Nd1 {[%emt 0:00:47]} Rd7 {[%emt 0:01:56]} 38. Nf2 {[%emt 0:00:08]} Kf6 {[%emt 0:02:58]} 39. Nd3 {[%emt 0:00:04]} Rb7 {[%emt 0:02:48]} 40. Kd2 {[%emt 0:02:31]} Rb5 {[%emt 0:02:44]} 41. Ke2 {[%emt 0:10:49]} g5 {[%emt 0:00:43]} 42. g3 {[%emt 0:06:54]} h5 {[%emt 0:04:52]} 43. h3 {[%emt 0:02:40]} Bd8 {[%emt 0:06:46]} 44. Ra4 {[%emt 0:01:07]} Bc7 {[%emt 0:06:03]} 45. g4 {[%emt 0:00:43]} hxg4 {[%emt 0:00:16]} 46. hxg4 {[%emt 0:00:04]} Rb8 {[%emt 0:05:46]} 47. Nf2 {[%emt 0:00:33]} Rb5 {[%emt 0:01:48]} 48. Ra1 {[%emt 0:00:43]} Bd8 {[%emt 0:01:36]} 49. Nd3 {[%emt 0:02:51]} Bc7 {[%emt 0:00:44]} 50. Ke3 {[%emt 0:02:08]} Rb8 {[%emt 0:00:56]} 51. b4 {[%emt 0:02:13]} axb4 {[%emt 0:01:23]} 52. Ra6 {[%emt 0:00:03]} b3 {[%emt 0:01:43]} 53. c3 {[%emt 0:04:36]} Ke7 {[%emt 0:02:21]} 54. gxf5 {[%emt 0:00:29]} exf5 {[%emt 0:00:14]} 55. Rxc6 {[%emt 0:00:01]} Ba5 {[%emt 0:02:35]} 56. Rg6 {[%emt 0:01:46]} Bxc3 {[%emt 0:01:00]} 57. bxc3 {[%emt 0:00:03]} b2 {[%emt 0:00:02]} 58. Nxb2 {[%emt 0:00:08]} Rxb2 {[%emt 0:00:04]} 59. Rxg5 {[%emt 0:00:05]} Kf6 {[%emt 0:00:54]} 60. Rg8 {[%emt 0:00:21]} Rb5 {[%emt 0:00:57]} 61. Rc8 {[%emt 0:00:05]} Ke7 {[%emt 0:00:48]} 62. Rc6 {[%emt 0:02:34]} Kd7 {[%emt 0:01:11]} 63. Rd6+ {[%emt 0:00:12]} Ke7 {[%emt 0:00:09]} 64. Rd5 {[%emt 0:00:50]} Ke6 {[%emt 0:00:10]} 65. Rd6+ {[%emt 0:00:30]} Ke7 {[%emt 0:00:04]} 66. Rc6 {[%emt 0:00:08]} Kd7 {[%emt 0:00:09]} 67. Rf6 {[%emt 0:00:07]} f4+ {[%emt 0:01:02]} 68. Kd3 {[%emt 0:00:51]} Rxc5 {[%emt 0:00:04]} 69. Ra6 {[%emt 0:00:51]} Rd5+ {[%emt 0:00:56]} 70. Ke4 {[%emt 0:00:15]} Rc5 {[%emt 0:00:20]} 71. c4 {[%emt 0:00:27]} Ke7 {[%emt 0:01:17]} 72. Rb6 {[%emt 0:00:04]} Rxc4+ {[%emt 0:01:03]} 73. Kxe5 {[%emt 0:00:04]} Kf7 {[%emt 0:00:11]} 74. Kf5 {[%emt 0:00:49]} Kg7 {[%emt 0:00:17]} 75. Rb7+ {[%emt 0:00:48]} Kh6 {[%emt 0:00:34]} 76. Rf7 {[%emt 0:00:13]} Ra4 {[%emt 0:00:30]} 77. Ke5 {[%emt 0:01:19]} Kg6 {[%emt 0:00:20]} 78. Rf8 {[%emt 0:00:17]} Kg7 {[%emt 0:00:31]} 79. Rd8 {[%emt 0:00:40]} Rb4 {[%emt 0:00:29]} 80. Rd1 {[%emt 0:00:12]} Ra4 {[%emt 0:00:20]} 81. Rg1+ {[%emt 0:00:11]} Kf7 {[%emt 0:00:09]} 82. Rg4 {[%emt 0:00:06]} Rb4 {[%emt 0:00:09]} 83. Rxf4+ {[%emt 0:00:05]} Rxf4 {[%emt 0:00:05]} 84. Kxf4 {[%emt 0:00:04]} Kf6 {[%emt 0:00:04]} 85. Ke4 {[%emt 0:00:05]} Ke6 {[%emt 0:00:06]} 86. f4 {[%emt 0:00:03]} Kf6 {[%emt 0:00:05]} 87. f5 {[%emt 0:00:04]} Kf7 {[%emt 0:00:15]} 88. Ke5 {[%emt 0:00:03]} Ke7 {[%emt 0:00:04]} 89. f6+ {[%emt 0:00:04]} Kf7 {[%emt 0:00:03]} 90. Kf5 {[%emt 0:00:05]} Kf8 {[%emt 0:00:14]} 91. Kg6 {[%emt 0:00:07]} Kg8 {[%emt 0:00:04]} 92. f7+ {[%emt 0:00:04]} Kf8 {[%emt 0:00:03]} 93. Kf6 {[%emt 0:00:05]} 1/2-1/2